lending/lending_fUSD_20250425
["ID","MTS","AMOUNT","RATE_DAILY","PERIOD"]
[358950635,1745583079302,-604.126834,0.0003589,7]
[358950636,1745583079313,-500.0,0.0003589,2]
[358950637,1745583079323,-500.0,0.0003589,2]
[358950638,1745583079333,-604.126834,0.0003589,7]
[358950639,1745583079343,-500.0,0.0003589,2]
[358950640,1745583079354,-604.126834,0.0003589,7]
[358950641,1745583079365,-500.0,0.0003589,2]
[358950642,1745583079375,-500.0,0.0003589,2]
[358950643,1745583079385,-604.126834,0.0003589,7]
[358950644,1745583079396,-817.1,0.0003589,2]
[358950645,1745583079409,-780.33,0.0003589,2]
[358950646,1745583079419,-657.49,0.0003589,2]
[358950647,1745583079428,-520.35274202,0.0003589,2]
[358950648,1745583079438,-500.0,0.0003589,2]
[358950649,1745583079449,-500.0,0.0003589,2]
[358950650,1745583079459,-1626.59,0.0003589,2]
[358950651,1745583079469,-500.0,0.0003589,2]
[358950652,1745583079479,-500.0,0.0003589,2]
[358950653,1745583079492,-1186.09,0.0003589,2]
[358950654,1745583079502,-534.56,0.0003589,2]
[358950655,1745583079512,-500.0,0.0003589,2]
[358950656,1745583079522,-500.0,0.0003589,2]
[358950657,1745583079533,-500.0,0.0003589,2]
[358950658,1745583079543,-604.126834,0.0003589,7]
[358950659,1745583079554,-604.126834,0.0003589,7]
[358950660,1745583079858,-604.126834,0.0003589,7]
[358950661,1745583079891,-604.126834,0.0003589,7]
[358950662,1745583079901,-620.16,0.0003589,2]
[358950663,1745583079912,-1039.27,0.0003589,2]
[358950664,1745583079921,-590.87207911,0.0003589,2]
[358950665,1745583079937,-500.0,0.0003589,2]
[358950666,1745583079947,-398.89629351,0.0003589,2]
[358950667,1745583079958,-500.0,0.0003589,2]
[358950668,1745583079968,-500.0,0.0003589,2]
[358950669,1745583079979,-500.0,0.0003589,2]
[358950670,1745583079989,-1185.34,0.0003589,2]
[358950671,1745583079999,-500.0,0.0003589,2]
[358950672,1745583080009,-1109.29,0.0003589,2]
[358950673,1745583080020,-500.0,0.0003589,2]
[358950674,1745583080030,-500.0,0.0003589,2]
[358950675,1745583080040,-500.0,0.0003589,2]
[358950676,1745583080051,-509.93,0.000359,3]
[358950677,1745583080061,-150.57,0.00035905,2]
[358950678,1745583080072,-500.0,0.00036,5]
[358950679,1745583080083,-162.59671409,0.00036055,30]
[358950680,1745583080093,-201.90982108,0.00036064,2]
[358950681,1745583080103,-6915.05252881,0.00036064,2]
[358950682,1745583080113,-823.11,0.00036138,2]
[358950683,1745583080123,-1135.12,0.00036138,2]
[358950684,1745583080134,-541.1983626,0.00036138,2]
[358950685,1745583080144,-213.575933,0.00036139,7]
[358950686,1745583080155,-151.0,0.00036139,7]
[358950687,1745583080165,-151.0,0.00036139,7]
[358950688,1745583080175,-11282.4004285,0.00036139,2]
[358950689,1745583080185,-151.0,0.00036139,7]
[358950690,1745583080196,-156.0453,0.00036139,7]
[358950691,1745583080206,-382.871808,0.00036139,7]
[358950692,1745583080216,-382.871808,0.00036139,7]
[358950693,1745583080226,-151.0,0.00036139,7]
[358950694,1745583080237,-230.480614,0.00036139,7]
[358950695,1745583080248,-230.480614,0.00036139,7]
[358950696,1745583080258,-26242.21297,0.00036139,2]
[358950697,1745583080269,-536.77,0.00036139,30]
[358950698,1745583080280,-500.0,0.00036163,10]
[358950699,1745583080290,-823.11,0.00036163,2]
[358950700,1745583080301,-823.11,0.00036163,2]
[358950701,1745583080311,-823.11,0.00036163,2]
[358950702,1745583080322,-823.11,0.00036163,2]
[358950703,1745583080331,-679.02,0.00036163,2]
[358950704,1745583080342,-679.02,0.00036163,2]
[358950705,1745583080352,-679.02,0.00036163,2]
[358950706,1745583080367,-679.02,0.00036163,2]
[358950707,1745583080378,-500.0,0.00036163,10]
[358950708,1745583080389,-500.0,0.00036163,2]
[358950709,1745583080400,-500.0,0.00036163,2]
[358950710,1745583080412,-500.0,0.00036163,2]
[358950711,1745583080423,-500.0,0.00036163,2]
[358950712,1745583080434,-1135.12,0.00036163,2]
[358950713,1745583080445,-1135.12,0.00036163,2]
[358950714,1745583080457,-1135.12,0.00036163,2]
[358950715,1745583080467,-1135.12,0.00036163,2]
[358950716,1745583080479,-500.0,0.00036163,10]
[358950717,1745583080490,-666.0,0.00036163,10]
[358950718,1745583080500,-500.0,0.00036163,2]
[358950719,1745583080511,-500.0,0.00036163,2]
[358950720,1745583080522,-500.0,0.00036163,2]
[358950721,1745583080533,-500.0,0.00036163,2]
[358950722,1745583080543,-150.0,0.00036163,3]
[358950723,1745583080555,-150.0,0.00036163,3]
[358950724,1745583080565,-585.740612,0.00036164,2]
[358950725,1745583080576,-585.740612,0.00036164,2]
[358950726,1745583080586,-500.0,0.00036164,2]
[358950727,1745583080597,-500.0,0.00036164,2]
[358950728,1745583080607,-500.0,0.00036164,2]
[358950729,1745583080618,-500.0,0.00036164,2]
[358950730,1745583080629,-500.0,0.00036164,2]
[358950731,1745583080639,-500.0,0.00036164,2]
[358950732,1745583080649,-609.62744073,0.00036164,2]
[358950733,1745583080659,-500.0,0.00036164,2]
[358950734,1745583080670,-500.0,0.00036164,2]
[358950735,1745583080680,-1012.67,0.00036164,2]
[358950736,1745583080691,-500.0,0.00036164,2]
[358950737,1745583080701,-500.0,0.00036164,2]
[358950738,1745583080712,-500.0,0.00036164,2]
[358950739,1745583080722,-500.0,0.00036164,2]
[358950740,1745583080732,-500.02237118,0.00036164,2]
[358950741,1745583080743,-500.0,0.00036164,2]
[358950742,1745583080753,-500.0,0.00036164,2]
[358950743,1745583080763,-500.0,0.00036164,2]
[358950744,1745583080774,-868.87,0.00036164,2]
[358950745,1745583080784,-797.02,0.00036164,2]
[358950746,1745583080799,-181.88391241,0.00036164,2]
[358950747,1745583080810,-500.0,0.00036164,2]
[358950748,1745583080820,-500.0,0.00036164,2]
[358950749,1745583080831,-818.13,0.00036164,2]
[358950750,1745583080842,-1161.28,0.00036164,2]
[358950751,1745583080852,-500.0,0.00036164,2]
[358950752,1745583080863,-860.36,0.00036164,2]
[358950753,1745583080874,-500.0,0.00036164,2]
[358950754,1745583080884,-500.0,0.00036164,2]
[358950755,1745583080895,-500.0,0.00036164,2]
[358950756,1745583080905,-500.0,0.00036164,2]
[358950757,1745583080916,-500.0,0.00036164,2]
[358950758,1745583080927,-500.0,0.00036164,2]
[358950759,1745583080938,-500.0,0.00036164,2]
[358950760,1745583080949,-469.32497562,0.00036164,2]
[358950761,1745583080961,-531.57118819,0.00036164,2]
[358950762,1745583080973,-500.0,0.00036164,2]
[358950763,1745583080983,-583.65,0.00036164,2]
[358950764,1745583080996,-500.0,0.00036164,2]
[358950765,1745583081007,-1027.07,0.00036164,2]
[358950766,1745583081019,-500.0,0.00036164,2]
[358950767,1745583081030,-500.0,0.00036164,2]
[358950768,1745583081041,-500.0,0.00036164,2]
[358950769,1745583081054,-625.83293023,0.00036164,2]
[358950770,1745583081065,-703.37,0.00036164,2]
[358950771,1745583081075,-1062.7,0.00036164,2]
[358950772,1745583081086,-500.0,0.00036164,2]
[358950773,1745583081096,-151.0,0.00036164,7]
[358950774,1745583081107,-500.0,0.00036164,2]
[358950775,1745583081118,-502.71,0.00036164,2]
[358950776,1745583081130,-500.42,0.00036164,2]
[358950777,1745583081142,-500.0,0.00036164,2]
[358950778,1745583081153,-500.0,0.00036164,2]
[358950779,1745583081165,-522.94,0.00036164,2]
[358950780,1745583081175,-500.0,0.00036164,2]
[358950781,1745583081187,-360.66285228,0.00036164,2]
[358950782,1745583081198,-500.0,0.00036164,2]
[358950783,1745583081208,-524.0,0.00036164,2]
[358950784,1745583081218,-500.0,0.00036164,2]
[358950785,1745583081229,-500.0,0.00036164,2]
[358950786,1745583081240,-510.84515895,0.00036164,2]
[358950787,1745583081252,-582.93,0.00036164,2]
[358950788,1745583081264,-525.30867834,0.00036164,2]
[358950789,1745583081276,-539.03,0.00036164,2]
[358950790,1745583081286,-500.0,0.00036164,2]
[358950791,1745583081297,-644.39,0.00036164,2]
[358950792,1745583081309,-173.153948,0.00036164,7]
[358950793,1745583081321,-500.0,0.00036164,2]
[358950794,1745583081333,-173.153946,0.00036164,7]
[358950795,1745583081343,-500.0,0.00036164,2]
[358950796,1745583081353,-506.15,0.00036164,2]
[358950797,1745583081364,-649.96,0.00036164,2]
[358950798,1745583081376,-598.96594199,0.00036164,2]
[358950799,1745583081388,-635.02,0.00036164,2]
[358950800,1745583081400,-537.48670232,0.00036164,2]
[358950801,1745583081415,-500.0,0.00036164,2]
[358950802,1745583081427,-506.25,0.00036164,2]
[358950803,1745583081438,-917.14,0.00036164,2]
[358950804,1745583081449,-500.0,0.00036164,2]
[358950805,1745583081462,-500.0,0.00036164,2]
[358950806,1745583081474,-500.0,0.00036164,2]
[358950807,1745583081487,-500.0,0.00036164,2]
[358950808,1745583081497,-500.0,0.00036164,2]
[358950809,1745583081508,-500.0,0.00036164,2]
[358950810,1745583081518,-500.0,0.00036164,2]
[358950811,1745583081528,-500.0,0.00036164,2]
[358950812,1745583081539,-500.0,0.00036164,2]
[358950813,1745583081550,-595.85,0.00036164,2]
[358950814,1745583081561,-500.0,0.00036164,2]
[358950815,1745583081573,-500.0,0.00036164,2]
[358950816,1745583081583,-793.45,0.00036164,2]
[358950817,1745583081595,-544.64,0.00036164,2]
[358950818,1745583081606,-527.13059151,0.00036164,2]
[358950819,1745583081617,-500.0,0.00036164,2]
[358950820,1745583081627,-582.91523749,0.00036164,2]
[358950821,1745583081637,-500.0,0.00036164,2]
[358950822,1745583081647,-500.0,0.00036164,2]
[358950823,1745583081658,-620.54,0.00036164,2]
[358950824,1745583081668,-544.39,0.00036164,2]
[358950825,1745583081678,-500.0,0.00036164,2]
[358950826,1745583081688,-541.17,0.00036164,2]
[358950827,1745583081698,-755.48,0.00036164,2]
[358950828,1745583081709,-500.0,0.00036164,2]
[358950829,1745583081718,-500.0,0.00036164,2]
[358950830,1745583081728,-500.0,0.00036164,2]
[358950831,1745583081739,-700.11,0.00036164,2]
[358950832,1745583081748,-500.0,0.00036164,2]
[358950833,1745583081768,-500.0,0.00036164,2]
[358950834,1745583081783,-520.51331242,0.00036164,2]
[358950835,1745583081794,-538.46,0.00036164,2]
[358950836,1745583081805,-500.0,0.00036164,2]
[358950837,1745583081816,-500.0,0.00036164,2]
[358950838,1745583081827,-500.0,0.00036164,2]
[358950839,1745583081838,-500.0,0.00036164,2]
[358950840,1745583081848,-500.0,0.00036164,2]
[358950841,1745583081859,-500.0,0.00036164,2]
[358950842,1745583081870,-500.0,0.00036164,2]
[358950843,1745583081881,-500.0,0.00036164,2]
[358950844,1745583081893,-500.0,0.00036164,2]
[358950845,1745583081904,-1069.68,0.00036164,2]
[358950846,1745583081914,-570.51,0.00036164,2]
[358950847,1745583081924,-504.75170126,0.00036164,2]
[358950848,1745583081935,-515.46726727,0.00036164,2]
[358950849,1745583081946,-640.19,0.00036164,2]
[358950850,1745583081957,-500.0,0.00036164,2]
[358950851,1745583081969,-500.0,0.00036164,2]
[358950852,1745583081979,-10810.18,0.00036164,2]
[358950853,1745583081989,-151.0,0.00036164,7]
[358950854,1745583082000,-500.0,0.00036164,2]
[358950855,1745583082012,-500.0,0.00036164,2]
[358950856,1745583082022,-10840.88,0.00036164,2]
[358950857,1745583082033,-500.0,0.00036164,2]
[358950858,1745583082044,-899.41,0.00036164,2]
[358950859,1745583082055,-966.06,0.00036164,2]
[358950860,1745583082066,-4171.73,0.00036164,2]
[358950861,1745583082076,-500.0,0.00036164,2]
[358950862,1745583082086,-500.0,0.00036164,2]
[358950863,1745583082097,-500.0,0.00036164,2]
[358950864,1745583082107,-500.0,0.00036164,2]
[358950865,1745583082118,-500.0,0.00036164,2]
[358950866,1745583082130,-500.0,0.00036164,2]
[358950867,1745583082140,-500.0,0.00036164,2]
[358950868,1745583082153,-500.0,0.00036164,2]
[358950869,1745583082165,-500.0,0.00036164,2]
[358950870,1745583082177,-1032.19,0.00036164,2]
[358950871,1745583082187,-500.0,0.00036164,2]
[358950872,1745583082204,-509.67879043,0.00036164,2]
[358950873,1745583082216,-500.0,0.00036164,2]
[358950874,1745583082228,-500.0,0.00036164,2]
[358950875,1745583082239,-568.252193,0.00036164,2]
[358950876,1745583082251,-568.252193,0.00036164,2]
[358950877,1745583082263,-1128.15,0.00036164,2]
[358950878,1745583082274,-513.98701118,0.00036164,2]
[358950879,1745583082285,-500.0,0.00036164,2]
[358950880,1745583082297,-734.64,0.00036164,2]
[358950881,1745583082308,-500.0,0.00036164,2]
[358950882,1745583082319,-500.0,0.00036164,2]
[358950883,1745583082330,-500.0,0.00036164,2]
[358950884,1745583082342,-500.0,0.00036164,2]
[358950885,1745583082355,-500.0,0.00036164,2]
[358950886,1745583082366,-500.0,0.00036164,2]
[358950887,1745583082378,-151.0,0.00036164,7]
[358950888,1745583082390,-500.0,0.00036164,2]
[358950889,1745583082402,-500.0,0.00036164,2]
[358950890,1745583082417,-500.0,0.00036164,2]
[358950891,1745583082430,-542.53,0.00036164,2]
[358950892,1745583082442,-500.0,0.00036164,2]
[358950893,1745583082454,-262.22766425,0.00036164,2]
[358950894,1745583082468,-2830.29,0.00036164,2]
[358950895,1745583082663,-569.90314377,0.00036164,2]
[358950896,1745583082674,-500.0,0.00036164,2]
[358950897,1745583082684,-575.34996929,0.00036164,2]
[358950898,1745583082693,-500.0,0.00036164,2]
[358950899,1745583082703,-500.0,0.00036164,2]
[358950900,1745583082712,-500.0,0.00036164,2]
[358950901,1745583082722,-500.0,0.00036164,2]
[358950902,1745583082732,-500.0,0.00036164,2]
[358950903,1745583082741,-500.0,0.00036164,2]
[358950904,1745583082750,-500.0,0.00036164,2]
[358950905,1745583082760,-511.30064413,0.00036164,2]
[358950906,1745583082769,-500.0,0.00036164,2]
[358950907,1745583082779,-994.75,0.00036164,2]
[358950908,1745583082788,-624.18071614,0.00036164,2]
[358950909,1745583082799,-500.0,0.00036164,2]
[358950910,1745583082809,-1123.78,0.00036164,2]
[358950911,1745583082819,-500.0,0.00036164,2]
[358950912,1745583082828,-500.0,0.00036164,2]
[358950913,1745583082838,-623.9,0.00036164,2]
[358950914,1745583082847,-500.0,0.00036164,2]
[358950915,1745583082857,-500.0,0.00036164,2]
[358950916,1745583082867,-663.3,0.00036164,2]
[358950917,1745583082876,-500.0,0.00036164,2]
[358950918,1745583082886,-500.0,0.00036164,2]
[358950919,1745583082895,-1449.12,0.00036164,2]
[358950920,1745583082905,-566.72,0.00036164,2]
[358950921,1745583082914,-500.0,0.00036164,2]
[358950922,1745583082924,-500.0,0.00036164,2]
[358950923,1745583082934,-500.0,0.00036164,2]
[358950924,1745583082943,-500.0,0.00036164,2]
[358950925,1745583082952,-546.08,0.00036164,2]
[358950926,1745583082961,-500.0,0.00036164,2]
[358950927,1745583082970,-500.0,0.00036164,2]
[358950928,1745583082980,-543.1619629,0.00036164,2]
[358950929,1745583082990,-728.93,0.00036164,2]
[358950930,1745583083000,-500.0,0.00036164,2]
[358950931,1745583083010,-653.19,0.00036164,2]
[358950932,1745583083025,-644.02,0.00036164,2]
[358950933,1745583083036,-1007.1,0.00036164,2]
[358950934,1745583083046,-500.0,0.00036164,2]
[358950935,1745583083057,-299.314075,0.00036164,7]
[358950936,1745583083068,-500.0,0.00036164,2]
[358950937,1745583083080,-500.0,0.00036164,2]
[358950938,1745583083091,-544.83644034,0.00036164,2]
[358950939,1745583083103,-787.02,0.00036164,2]
[358950940,1745583083112,-1008.08,0.00036164,2]
[358950941,1745583083123,-299.314072,0.00036164,7]
[358950942,1745583083133,-694.5,0.00036164,2]
[358950943,1745583083144,-515.60576483,0.00036164,2]
[358950944,1745583083155,-500.0,0.00036164,2]
[358950945,1745583083165,-500.0,0.00036164,2]
[358950946,1745583083175,-500.0,0.00036164,2]
[358950947,1745583083186,-1132.53,0.00036164,2]
[358950948,1745583083197,-500.0,0.00036164,2]
[358950949,1745583083207,-500.0,0.00036164,2]
[358950950,1745583083217,-500.0,0.00036164,2]
[358950951,1745583083226,-500.0,0.00036164,2]
[358950952,1745583083236,-500.0,0.00036164,2]
[358950953,1745583083245,-500.0,0.00036164,2]
[358950954,1745583083256,-769.43,0.00036164,2]
[358950955,1745583083265,-500.0,0.00036164,2]
[358950956,1745583083275,-1312.71,0.00036164,2]
[358950957,1745583083284,-588.08,0.00036164,2]
[358950958,1745583083294,-500.0,0.00036164,2]
[358950959,1745583083305,-500.0,0.00036164,2]
[358950960,1745583083315,-500.0,0.00036164,2]
[358950961,1745583083325,-500.0,0.00036164,2]
[358950962,1745583083334,-500.0,0.00036164,2]
[358950963,1745583083344,-517.24,0.00036164,2]
[358950964,1745583083355,-1073.84,0.00036164,2]
[358950965,1745583083364,-623.30485272,0.00036164,2]
[358950966,1745583083374,-500.0,0.00036164,2]
[358950967,1745583083384,-500.0,0.00036164,2]
[358950968,1745583083393,-1188.42,0.00036164,2]
[358950969,1745583083405,-500.0,0.00036164,2]
[358950970,1745583083416,-742.58,0.00036164,2]
[358950971,1745583083426,-500.0,0.00036164,2]
[358950972,1745583083437,-528.27,0.00036164,2]
[358950973,1745583083447,-246.1959372,0.00036164,2]
[358950974,1745583083457,-500.0,0.00036164,2]
[358950975,1745583083467,-500.0,0.00036164,2]
[358950976,1745583083477,-678.67,0.00036164,2]
[358950977,1745583083487,-984.22,0.00036164,2]
[358950978,1745583083497,-500.0,0.00036164,2]
[358950979,1745583083506,-1357.86,0.00036164,2]
[358950980,1745583083516,-500.0,0.00036164,2]
[358950981,1745583083526,-1018.63,0.00036164,2]
[358950982,1745583083536,-500.0,0.00036164,2]
[358950983,1745583083546,-500.0,0.00036164,2]
[358950984,1745583083557,-500.0,0.00036164,2]
[358950985,1745583083567,-500.0,0.00036164,2]
[358950986,1745583083577,-599.18,0.00036164,2]
[358950987,1745583083587,-618.78,0.00036164,2]
[358950988,1745583083596,-500.0,0.00036164,2]
[358950989,1745583083606,-572.68482644,0.00036164,2]
[358950990,1745583083616,-500.0,0.00036164,2]
[358950991,1745583083627,-231.02783209,0.00036164,2]
[358950992,1745583083639,-1036.97,0.00036164,2]
[358950993,1745583083649,-500.0,0.00036164,2]
[358950994,1745583083659,-532.81757939,0.00036164,2]
[358950995,1745583083669,-695.81,0.00036164,2]
[358950996,1745583083678,-642.74932936,0.00036164,2]
[358950997,1745583083688,-500.0,0.00036164,2]
[358950998,1745583083698,-2083.95,0.00036164,2]
[358950999,1745583083708,-500.0,0.00036164,2]
[358951000,1745583083717,-500.0,0.00036164,2]
[358951001,1745583083727,-500.0,0.00036164,2]
[358951002,1745583083736,-500.0,0.00036164,2]
[358951003,1745583083746,-550.15190408,0.00036164,2]
[358951004,1745583083755,-546.36,0.00036164,2]
[358951005,1745583083765,-500.0,0.00036164,2]
[358951006,1745583083774,-1065.05,0.00036164,2]
[358951007,1745583083783,-500.0,0.00036164,2]
[358951008,1745583083792,-765.14,0.00036164,2]
[358951009,1745583083802,-500.0,0.00036164,2]
[358951010,1745583083812,-500.0,0.00036164,2]
[358951011,1745583083821,-500.0,0.00036164,2]
[358951012,1745583083831,-500.0,0.00036164,2]
[358951013,1745583083840,-500.0,0.00036164,2]
[358951014,1745583083849,-587.37648499,0.00036164,2]
[358951015,1745583083859,-550.18807569,0.00036164,2]
[358951016,1745583083868,-858.84,0.00036164,2]
[358951017,1745583083878,-763.88,0.00036164,2]
[358951018,1745583083887,-518.69340176,0.00036164,2]
[358951019,1745583083896,-500.0,0.00036164,2]
[358951020,1745583083906,-272.620426,0.00036164,7]
[358951021,1745583083915,-500.0,0.00036164,2]
[358951022,1745583083925,-500.0,0.00036164,2]
[358951023,1745583083935,-572.21,0.00036164,2]
[358951024,1745583083944,-500.0,0.00036164,2]
[358951025,1745583083954,-272.620424,0.00036164,7]
[358951026,1745583083963,-719.69,0.00036164,2]
[358951027,1745583083973,-879.02,0.00036164,2]
[358951028,1745583083983,-500.0,0.00036164,2]
[358951029,1745583083994,-500.0,0.00036164,2]
[358951030,1745583084003,-570.43,0.00036164,2]
[358951031,1745583084013,-500.0,0.00036164,2]
[358951032,1745583084023,-990.31,0.00036164,2]
[358951033,1745583084033,-500.0,0.00036164,2]
[358951034,1745583084043,-542.96,0.00036164,2]
[358951035,1745583084053,-657.75,0.00036164,2]
[358951036,1745583084063,-500.0,0.00036164,2]
[358951037,1745583084072,-335.39836379,0.00036164,2]
[358951038,1745583084082,-500.0,0.00036164,2]
[358951039,1745583084092,-820.01,0.00036164,2]
[358951040,1745583084103,-500.0,0.00036164,2]
[358951041,1745583084112,-961.6,0.00036164,2]
[358951042,1745583084122,-500.0,0.00036164,2]
[358951043,1745583084132,-500.0,0.00036164,2]
[358951044,1745583084142,-500.0,0.00036164,2]
[358951045,1745583084152,-514.58258995,0.00036164,2]
[358951046,1745583084162,-500.0,0.00036164,2]
[358951047,1745583084172,-500.0,0.00036164,2]
[358951048,1745583084184,-515.47,0.00036164,2]
[358951049,1745583084196,-845.57,0.00036164,2]
[358951050,1745583084207,-336.4605368,0.00036164,2]
[358951051,1745583084218,-500.0,0.00036164,2]
[358951052,1745583084229,-389.41034668,0.00036164,2]
[358951053,1745583084239,-754.68,0.00036164,2]
[358951054,1745583084249,-500.0,0.00036164,2]
[358951055,1745583084259,-500.0,0.00036164,2]
[358951056,1745583084268,-970.8,0.00036164,2]
[358951057,1745583084279,-512.37,0.00036164,2]
[358951058,1745583084289,-500.0,0.00036164,2]
[358951059,1745583084300,-500.0,0.00036164,2]
[358951060,1745583084310,-500.0,0.00036164,2]
[358951061,1745583084320,-500.0,0.00036164,2]
[358951062,1745583084331,-500.0,0.00036164,2]
[358951063,1745583084341,-1145.2,0.00036164,2]
[358951064,1745583084351,-500.0,0.00036164,2]
[358951065,1745583084362,-500.0,0.00036164,2]
[358951066,1745583084372,-500.0,0.00036164,2]
[358951067,1745583084383,-500.0,0.00036164,2]
[358951068,1745583084395,-1103.01,0.00036164,2]
[358951069,1745583084407,-536.99,0.00036164,2]
[358951070,1745583084418,-500.0,0.00036164,2]
[358951071,1745583084428,-500.0,0.00036164,2]
[358951072,1745583084438,-500.0,0.00036164,2]
[358951073,1745583084449,-500.0,0.00036164,2]
[358951074,1745583084459,-1179.17,0.00036164,2]
[358951075,1745583084469,-768.62,0.00036164,2]
[358951076,1745583084481,-500.0,0.00036164,2]
[358951077,1745583084491,-500.0,0.00036164,2]
[358951078,1745583084501,-1042.75,0.00036164,2]
[358951079,1745583084511,-781.78,0.00036164,2]
[358951080,1745583084522,-179.531903,0.00036164,7]
[358951081,1745583084533,-500.0,0.00036164,2]
[358951082,1745583084543,-500.0,0.00036164,2]
[358951083,1745583084554,-500.0,0.00036164,2]
[358951084,1745583084565,-500.0,0.00036164,2]
[358951085,1745583084575,-792.6,0.00036164,2]
[358951086,1745583084586,-500.0,0.00036164,2]
[358951087,1745583084596,-179.531912,0.00036164,7]
[358951088,1745583084606,-500.0,0.00036164,2]
[358951089,1745583084616,-871.81,0.00036164,2]
[358951090,1745583084626,-500.0,0.00036164,2]
[358951091,1745583084637,-569.06230335,0.00036164,2]
[358951092,1745583084647,-500.0,0.00036164,2]
[358951093,1745583084657,-1002.05,0.00036164,2]
[358951094,1745583084667,-207.61168264,0.00036164,2]
[358951095,1745583084677,-610.47,0.00036164,2]
[358951096,1745583084686,-500.0,0.00036164,2]
[358951097,1745583084697,-500.0,0.00036164,2]
[358951098,1745583084707,-500.0,0.00036164,2]
[358951099,1745583084717,-500.0,0.00036164,2]
[358951100,1745583084728,-500.0,0.00036164,2]
[358951101,1745583084738,-500.0,0.00036164,2]
[358951102,1745583084748,-500.0,0.00036164,2]
[358951103,1745583084758,-500.0,0.00036164,2]
[358951104,1745583084768,-500.0,0.00036164,2]
[358951105,1745583084779,-942.33,0.00036164,2]
[358951106,1745583084789,-500.0,0.00036164,2]
[358951107,1745583084800,-517.79685938,0.00036164,2]
[358951108,1745583084810,-524.25518927,0.00036164,2]
[358951109,1745583084820,-767.48,0.00036164,2]
[358951110,1745583084831,-500.0,0.00036164,2]
[358951111,1745583084842,-500.0,0.00036164,2]
[358951112,1745583084853,-500.0,0.00036164,2]
[358951113,1745583084863,-593.9,0.00036164,2]
[358951114,1745583084875,-500.0,0.00036164,2]
[358951115,1745583084885,-500.0,0.00036164,2]
[358951116,1745583084895,-827.14,0.00036164,2]
[358951117,1745583084906,-1147.58,0.00036164,2]
[358951118,1745583084916,-500.0,0.00036164,2]
[358951119,1745583084926,-1065.37,0.00036164,2]
[358951120,1745583084937,-500.0,0.00036164,2]
[358951121,1745583084947,-500.0,0.00036164,2]
[358951122,1745583084957,-500.0,0.00036164,2]
[358951123,1745583084967,-1122.52,0.00036164,2]
[358951124,1745583084978,-500.0,0.00036164,2]
[358951125,1745583084988,-500.0,0.00036164,2]
[358951126,1745583084997,-500.0,0.00036164,2]
[358951127,1745583085007,-550.52538769,0.00036164,2]
[358951128,1745583085018,-500.0,0.00036164,2]
[358951129,1745583085028,-500.0,0.00036164,2]
[358951130,1745583085038,-500.0,0.00036164,2]
[358951131,1745583085048,-500.0,0.00036164,2]
[358951132,1745583085060,-500.0,0.00036164,2]
[358951133,1745583085070,-901.52,0.00036164,2]
[358951134,1745583085080,-500.0,0.00036164,2]